[Event "Live Chess"]
[Site "Chess.com"]
[Date "2023.05.20"]
[Round "-"]
[White "xx_blindpuffin_xx"]
[Black "LiamBellwood"]
[Result "1-0"]
[WhiteElo "2208"]
[BlackElo "2077"]
[TimeControl "300"]
[EndTime "15:45:23 PDT"]
[Termination "xx_blindpuffin_xx won by resignation"]

1. d4 {[%clk 0:04:58.7]} 1... e6 {[%clk 0:04:59.9]} 2. Bf4 {[%clk 0:04:58.1]}
2... f5 {[%clk 0:04:58]} 3. e3 {[%clk 0:04:58]} 3... Nf6 {[%clk 0:04:57.5]} 4.
Nf3 {[%clk 0:04:57.7]} 4... b6 {[%clk 0:04:54.1]} 5. h3 {[%clk 0:04:57.6]} 5...
Bb7 {[%clk 0:04:53.7]} 6. Be2 {[%clk 0:04:55.7]} 6... Be7 {[%clk 0:04:46.7]} 7.
O-O {[%clk 0:04:53.8]} 7... O-O {[%clk 0:04:46.2]} 8. c4 {[%clk 0:04:52.1]} 8...
Ne4 {[%clk 0:04:45.2]} 9. Nfd2 {[%clk 0:04:49.6]} 9... d6 {[%clk 0:04:37]} 10.
Bf3 {[%clk 0:04:47.5]} 10... Nd7 {[%clk 0:04:36.6]} 11. Nc3 {[%clk 0:04:44.7]}
11... Nxc3 {[%clk 0:04:31.6]} 12. bxc3 {[%clk 0:04:42.4]} 12... Bxf3 {[%clk
0:04:31.3]} 13. Nxf3 {[%clk 0:04:40.3]} 13... Bf6 {[%clk 0:04:26.5]} 14. Rb1
{[%clk 0:04:36.5]} 14... e5 {[%clk 0:04:17.4]} 15. dxe5 {[%clk 0:04:34.7]} 15...
dxe5 {[%clk 0:04:17.3]} 16. Qd5+ {[%clk 0:04:33.3]} 16... Kh8 {[%clk 0:04:14.1]}
17. Bh2 {[%clk 0:04:29]} 17... e4 {[%clk 0:04:11]} 18. Nd4 {[%clk 0:04:27.2]}
18... Ne5 {[%clk 0:03:20.6]} 19. Ne6 {[%clk 0:04:17.3]} 19... Qxd5 {[%clk
0:03:15.2]} 20. cxd5 {[%clk 0:04:17.2]} 20... Rf7 {[%clk 0:03:11]} 21. c4 {[%clk
0:03:59.7]} 21... Nxc4 {[%clk 0:03:00.2]} 22. Rfc1 {[%clk 0:03:57.9]} 22... Ne5
{[%clk 0:02:41.2]} 23. Nxc7 {[%clk 0:03:54.9]} 23... Rc8 {[%clk 0:02:32.6]} 24.
Ne6 {[%clk 0:03:52.7]} 24... Rxc1+ {[%clk 0:01:58.7]} 25. Rxc1 {[%clk
0:03:52.6]} 25... h6 {[%clk 0:01:58.1]} 26. Rc8+ {[%clk 0:03:49.7]} 26... Kh7
{[%clk 0:01:52.5]} 27. Nf8+ {[%clk 0:03:46.9]} 27... Kg8 {[%clk 0:01:39.6]} 28.
Ng6+ {[%clk 0:03:41.2]} 28... Kh7 {[%clk 0:01:34.7]} 29. Nxe5 {[%clk 0:03:40]}
29... Bxe5 {[%clk 0:01:33.7]} 30. Bxe5 {[%clk 0:03:39.9]} 1-0

[Event "Live Chess"]
[Site "Chess.com"]
[Date "2023.05.20"]
[Round "-"]
[White "karimghalambaz"]
[Black "HoarseyHorsey"]
[Result "1-0"]
[WhiteElo "1282"]
[BlackElo "1430"]
[TimeControl "300"]
[EndTime "15:45:37 PDT"]
[Termination "karimghalambaz won by resignation"]

1. d4 {[%clk 0:04:51.7]} 1... Nf6 {[%clk 0:04:58.7]} 2. Bf4 {[%clk 0:04:49.4]}
2... d5 {[%clk 0:04:57.6]} 3. e3 {[%clk 0:04:47.8]} 3... c5 {[%clk 0:04:56.5]}
4. c3 {[%clk 0:04:45.7]} 4... Nc6 {[%clk 0:04:55.5]} 5. Nf3 {[%clk 0:04:44]}
5... cxd4 {[%clk 0:04:54]} 6. exd4 {[%clk 0:04:41.8]} 6... e6 {[%clk 0:04:53.1]}
7. Nbd2 {[%clk 0:04:39.6]} 7... Bd6 {[%clk 0:04:51.9]} 8. Bg3 {[%clk 0:04:37.7]}
8... O-O {[%clk 0:04:50.1]} 9. Bd3 {[%clk 0:04:36]} 9... Re8 {[%clk 0:04:48.3]}
10. Ne5 {[%clk 0:04:33.9]} 10... Qc7 {[%clk 0:04:42.7]} 11. f4 {[%clk
0:04:30.9]} 11... Nd7 {[%clk 0:04:29.5]} 12. O-O {[%clk 0:04:25.5]} 12... f6
{[%clk 0:04:27.5]} 13. Bxh7+ {[%clk 0:04:10.2]} 13... Kxh7 {[%clk 0:04:12.8]}
14. Qh5+ {[%clk 0:04:07.6]} 14... Kg8 {[%clk 0:04:11.2]} 15. Qxe8+ {[%clk
0:03:55.4]} 15... Bf8 {[%clk 0:04:07.4]} 16. Qf7+ {[%clk 0:03:51.5]} 16... Kh8
{[%clk 0:04:04.6]} 17. Ng6+ {[%clk 0:03:42.5]} 17... Kh7 {[%clk 0:04:03]} 18.
Nxf8+ {[%clk 0:03:36.7]} 18... Nxf8 {[%clk 0:04:01.2]} 19. Qxc7 {[%clk
0:03:34.4]} 1-0

[Event "Live Chess"]
[Site "Chess.com"]
[Date "2023.05.20"]
[Round "-"]
[White "manthanit"]
[Black "LL220284LL"]
[Result "0-1"]
[WhiteElo "1048"]
[BlackElo "2385"]
[TimeControl "300"]
[EndTime "15:45:42 PDT"]
[Termination "LL220284LL won by resignation"]

1. e4 {[%clk 0:04:58.9]} 1... c5 {[%clk 0:04:58.9]} 2. Nf3 {[%clk 0:04:55.9]}
2... e6 {[%clk 0:04:58.5]} 3. d4 {[%clk 0:04:54.4]} 3... cxd4 {[%clk 0:04:58.4]}
4. Nxd4 {[%clk 0:04:52.2]} 4... a6 {[%clk 0:04:58.1]} 5. c4 {[%clk 0:04:50.1]}
5... Qc7 {[%clk 0:04:54.7]} 6. Nc3 {[%clk 0:04:46.6]} 6... Nc6 {[%clk
0:04:53.1]} 7. Nxc6 {[%clk 0:04:45.1]} 7... bxc6 {[%clk 0:04:44.9]} 8. g3 {[%clk
0:04:42.1]} 8... c5 {[%clk 0:04:43.7]} 9. Bg2 {[%clk 0:04:41.1]} 9... Bb7 {[%clk
0:04:42.8]} 10. O-O {[%clk 0:04:39.3]} 10... Nf6 {[%clk 0:04:33.7]} 11. Bf4
{[%clk 0:04:37.3]} 11... e5 {[%clk 0:04:32.1]} 12. Bg5 {[%clk 0:04:35.3]} 12...
Be7 {[%clk 0:04:27.2]} 13. Nd5 {[%clk 0:04:21.5]} 13... Nxd5 {[%clk 0:04:25.7]}
14. exd5 {[%clk 0:04:02.5]} 14... Bxg5 {[%clk 0:04:23.5]} 15. Qg4 {[%clk
0:04:00.8]} 15... Bf6 {[%clk 0:04:20]} 16. Be4 {[%clk 0:03:58]} 16... d6 {[%clk
0:04:17.5]} 17. Rae1 {[%clk 0:03:55.7]} 17... Bc8 {[%clk 0:04:16.4]} 18. b3
{[%clk 0:03:54.6]} 18... Bxg4 {[%clk 0:04:15]} 0-1

[Event "Live Chess"]
[Site "Chess.com"]
[Date "2023.05.20"]
[Round "-"]
[White "jagbama"]
[Black "diana21strabt"]
[Result "0-1"]
[WhiteElo "1145"]
[BlackElo "1699"]
[TimeControl "300"]
[EndTime "15:45:43 PDT"]
[Termination "diana21strabt won on time"]

1. e4 {[%clk 0:04:57.7]} 1... d5 {[%clk 0:04:58.9]} 2. exd5 {[%clk 0:04:55.9]}
2... Qxd5 {[%clk 0:04:57.7]} 3. Nc3 {[%clk 0:04:55.8]} 3... Qa5 {[%clk
0:04:56.3]} 4. Bd3 {[%clk 0:04:43.2]} 4... Nf6 {[%clk 0:04:54.7]} 5. Nge2 {[%clk
0:04:32.8]} 5... Bg4 {[%clk 0:04:52.9]} 6. O-O {[%clk 0:04:29.9]} 6... Nc6
{[%clk 0:04:51.5]} 7. h3 {[%clk 0:04:28.7]} 7... Bh5 {[%clk 0:04:49.1]} 8. Bb5
{[%clk 0:04:10.4]} 8... O-O-O {[%clk 0:04:45.7]} 9. a4 {[%clk 0:04:05.3]} 9...
a6 {[%clk 0:04:42.5]} 10. Bxc6 {[%clk 0:03:58.4]} 10... bxc6 {[%clk 0:04:41.2]}
11. Ra3 {[%clk 0:03:45.5]} 11... e6 {[%clk 0:04:38.3]} 12. Rb3 {[%clk
0:03:43.6]} 12... Bb4 {[%clk 0:04:35.1]} 13. Qe1 {[%clk 0:03:19]} 13... c5
{[%clk 0:04:32.2]} 14. d3 {[%clk 0:03:12.8]} 14... Nd5 {[%clk 0:04:25.5]} 15.
Bd2 {[%clk 0:03:10.4]} 15... Bxe2 {[%clk 0:04:23.4]} 16. Qxe2 {[%clk 0:02:38.2]}
16... Bxc3 {[%clk 0:04:20]} 17. Bxc3 {[%clk 0:02:32]} 17... Qxa4 {[%clk
0:04:14.7]} 18. Ra3 {[%clk 0:02:26.3]} 18... Nxc3 {[%clk 0:04:11.2]} 19. Rxc3
{[%clk 0:02:03]} 19... Qb5 {[%clk 0:04:09.5]} 20. Rb3 {[%clk 0:01:57.3]} 20...
Qc6 {[%clk 0:04:07.5]} 21. c4 {[%clk 0:01:32.3]} 21... Rd6 {[%clk 0:04:03.9]}
22. Ra3 {[%clk 0:01:26]} 22... Rhd8 {[%clk 0:03:56.4]} 23. Rfa1 {[%clk
0:01:18.7]} 23... Qb7 {[%clk 0:03:54.8]} 24. Qf3 {[%clk 0:00:59.1]} 24... Qxf3
{[%clk 0:03:35.6]} 25. gxf3 {[%clk 0:00:57.8]} 25... Kb7 {[%clk 0:03:34.5]} 26.
Rb3+ {[%clk 0:00:48.9]} 26... Rb6 {[%clk 0:03:33.1]} 27. Raa3 {[%clk 0:00:29.4]}
27... Rd4 {[%clk 0:03:26.5]} 28. Kf1 {[%clk 0:00:20.1]} 28... Rf4 {[%clk
0:03:24.4]} 29. Ke2 {[%clk 0:00:19.2]} 29... Rh4 {[%clk 0:03:23]} 30. d4 {[%clk
0:00:12.5]} 30... cxd4 {[%clk 0:03:17.7]} 31. c5 {[%clk 0:00:09.7]} 31... Rxb3
{[%clk 0:03:07.2]} 32. Rxb3+ {[%clk 0:00:09.6]} 32... Kc6 {[%clk 0:03:06.1]} 33.
Kd3 {[%clk 0:00:05.1]} 33... Kxc5 {[%clk 0:03:03.7]} 34. Ra3 {[%clk 0:00:03]}
34... Kb5 {[%clk 0:03:01.9]} 35. Rb3+ {[%clk 0:00:02]} 35... Ka4 {[%clk
0:03:00.7]} 0-1

[Event "Live Chess"]
[Site "Chess.com"]
[Date "2023.05.20"]
[Round "-"]
[White "Jo1ts"]
[Black "raminguy"]
[Result "0-1"]
[WhiteElo "779"]
[BlackElo "1960"]
[TimeControl "300"]
[EndTime "15:46:13 PDT"]
[Termination "raminguy won by resignation"]

1. d4 {[%clk 0:04:58.5]} 1... d5 {[%clk 0:04:59]} 2. Bf4 {[%clk 0:04:57.7]} 2...
e6 {[%clk 0:04:58]} 3. Nf3 {[%clk 0:04:56.7]} 3... Bd6 {[%clk 0:04:57.7]} 4. Bg3
{[%clk 0:04:55.1]} 4... Nf6 {[%clk 0:04:56.9]} 5. e3 {[%clk 0:04:53.7]} 5... O-O
{[%clk 0:04:56.3]} 6. Nbd2 {[%clk 0:04:53]} 6... b6 {[%clk 0:04:55.7]} 7. Bd3
{[%clk 0:04:52.4]} 7... Ba6 {[%clk 0:04:55.2]} 8. Bxa6 {[%clk 0:04:48.8]} 8...
Nxa6 {[%clk 0:04:55.1]} 9. c3 {[%clk 0:04:45.5]} 9... Nb8 {[%clk 0:04:53.9]} 10.
Ne5 {[%clk 0:04:39.8]} 10... c5 {[%clk 0:04:52.5]} 11. Qa4 {[%clk 0:04:29.7]}
11... Qc7 {[%clk 0:04:51.1]} 12. Ndf3 {[%clk 0:04:20]} 12... Nfd7 {[%clk
0:04:49.6]} 13. Qc2 {[%clk 0:03:54.6]} 13... f6 {[%clk 0:04:48.3]} 14. Nxd7
{[%clk 0:03:46.9]} 14... Nxd7 {[%clk 0:04:48.2]} 15. Bxd6 {[%clk 0:03:44.3]}
15... Qxd6 {[%clk 0:04:47.5]} 16. O-O-O {[%clk 0:03:41.2]} 16... cxd4 {[%clk
0:04:42.4]} 17. Nxd4 {[%clk 0:03:41.1]} 17... Rfc8 {[%clk 0:04:30.5]} 18. e4
{[%clk 0:03:31.6]} 18... Ne5 {[%clk 0:03:54.5]} 19. f4 {[%clk 0:03:11.2]} 19...
Nc4 {[%clk 0:03:52.5]} 20. Rhe1 {[%clk 0:03:02.6]} 20... Qxf4+ {[%clk
0:03:50.4]} 21. Kb1 {[%clk 0:02:57.6]} 21... Qd6 {[%clk 0:03:05]} 22. exd5
{[%clk 0:02:52]} 22... exd5 {[%clk 0:03:03.5]} 23. h3 {[%clk 0:02:44]} 23... Re8
{[%clk 0:02:58.1]} 24. Nf5 {[%clk 0:02:41]} 24... Qd7 {[%clk 0:02:45.3]} 25.
Ne7+ {[%clk 0:02:19.1]} 25... Rxe7 {[%clk 0:02:43]} 26. Rxe7 {[%clk 0:02:16.4]}
26... Qxe7 {[%clk 0:02:40.6]} 27. Qf5 {[%clk 0:02:14.1]} 27... Qe4+ {[%clk
0:02:33.8]} 28. Qxe4 {[%clk 0:02:09.7]} 28... dxe4 {[%clk 0:02:33.7]} 29. Rd4
{[%clk 0:02:08.4]} 29... Re8 {[%clk 0:02:17.2]} 30. Rxc4 {[%clk 0:02:03.2]}
30... e3 {[%clk 0:02:15.6]} 31. Kc1 {[%clk 0:02:02.7]} 31... e2 {[%clk
0:02:14.8]} 32. Rc8 {[%clk 0:01:54.5]} 32... e1=Q+ {[%clk 0:02:12.8]} 33. Kc2
{[%clk 0:01:49.9]} 33... Rxc8 {[%clk 0:02:11.8]} 0-1

[Event "Live Chess"]
[Site "Chess.com"]
[Date "2023.05.20"]
[Round "-"]
[White "Missedidea"]
[Black "ossie57"]
[Result "0-1"]
[WhiteElo "1780"]
[BlackElo "1927"]
[TimeControl "300"]
[EndTime "15:46:14 PDT"]
[Termination "ossie57 won on time"]

1. d4 {[%clk 0:04:58.8]} 1... Nf6 {[%clk 0:04:58.2]} 2. c4 {[%clk 0:04:57.4]}
2... g6 {[%clk 0:04:57.4]} 3. Nc3 {[%clk 0:04:56.2]} 3... d6 {[%clk 0:04:56.3]}
4. e4 {[%clk 0:04:54.9]} 4... Bg7 {[%clk 0:04:55.6]} 5. Nf3 {[%clk 0:04:53.6]}
5... O-O {[%clk 0:04:54.6]} 6. Be2 {[%clk 0:04:52.5]} 6... Re8 {[%clk
0:04:51.6]} 7. O-O {[%clk 0:04:49.9]} 7... Nc6 {[%clk 0:04:49.3]} 8. d5 {[%clk
0:04:44.3]} 8... Nb8 {[%clk 0:04:46.5]} 9. Bg5 {[%clk 0:04:38.6]} 9... h6 {[%clk
0:04:45.2]} 10. Bh4 {[%clk 0:04:36.9]} 10... e5 {[%clk 0:04:38.2]} 11. Nd2
{[%clk 0:04:32.6]} 11... g5 {[%clk 0:04:34]} 12. Bg3 {[%clk 0:04:30.3]} 12... c6
{[%clk 0:04:28.7]} 13. h4 {[%clk 0:04:09.7]} 13... g4 {[%clk 0:04:20.5]} 14. Qc2
{[%clk 0:03:36.6]} 14... h5 {[%clk 0:04:18]} 15. f3 {[%clk 0:03:26.2]} 15... Rf8
{[%clk 0:04:15.8]} 16. f4 {[%clk 0:03:10.9]} 16... c5 {[%clk 0:04:06.3]} 17. f5
{[%clk 0:03:06.7]} 17... a6 {[%clk 0:04:04.2]} 18. a3 {[%clk 0:03:03.5]} 18...
Bd7 {[%clk 0:04:03.1]} 19. b4 {[%clk 0:03:01.4]} 19... b6 {[%clk 0:04:00.6]} 20.
bxc5 {[%clk 0:02:52.5]} 20... bxc5 {[%clk 0:03:55.8]} 21. Rfb1 {[%clk
0:02:48.4]} 21... Bc8 {[%clk 0:03:49.8]} 22. Rb2 {[%clk 0:02:46.9]} 22... Nbd7
{[%clk 0:03:49]} 23. Rab1 {[%clk 0:02:44.7]} 23... Re8 {[%clk 0:03:40.9]} 24.
Na4 {[%clk 0:02:28.9]} 24... Nh7 {[%clk 0:03:25.5]} 25. Be1 {[%clk 0:02:20.9]}
25... Bf6 {[%clk 0:03:23.5]} 26. g3 {[%clk 0:02:19.7]} 26... a5 {[%clk
0:03:17.6]} 27. Nb6 {[%clk 0:02:07.9]} 27... Nxb6 {[%clk 0:03:14.8]} 28. Rxb6
{[%clk 0:02:06.1]} 28... Ba6 {[%clk 0:03:09.9]} 29. Nb3 {[%clk 0:01:58.6]} 29...
Qxb6 {[%clk 0:03:05]} 30. Nxa5 {[%clk 0:01:53.7]} 30... Qa7 {[%clk 0:03:04.1]}
31. Nc6 {[%clk 0:01:51.7]} 31... Qc7 {[%clk 0:02:57]} 32. Ba5 {[%clk 0:01:48.5]}
32... Qd7 {[%clk 0:02:54.4]} 33. Rb6 {[%clk 0:01:39.8]} 33... Bb7 {[%clk
0:02:50.8]} 34. Qb3 {[%clk 0:01:35.9]} 34... Bxc6 {[%clk 0:02:49.8]} 35. dxc6
{[%clk 0:01:33.4]} 35... Qa7 {[%clk 0:02:43.1]} 36. Rb5 {[%clk 0:01:19.9]} 36...
Bd8 {[%clk 0:02:35.8]} 37. Bxd8 {[%clk 0:00:55.2]} 37... Rexd8 {[%clk
0:02:35.7]} 38. Rb7 {[%clk 0:00:47]} 38... Qxa3 {[%clk 0:02:30.4]} 39. Qxa3
{[%clk 0:00:44.3]} 39... Rxa3 {[%clk 0:02:29.4]} 40. c7 {[%clk 0:00:43.3]} 40...
Rc8 {[%clk 0:02:28.3]} 41. Rb8 {[%clk 0:00:35.2]} 41... Ra8 {[%clk 0:02:27.1]}
42. Rb7 {[%clk 0:00:27.2]} 42... Nf6 {[%clk 0:02:19.5]} 43. Bd3 {[%clk 0:00:24]}
43... Ne8 {[%clk 0:02:18.4]} 44. Bc2 {[%clk 0:00:20]} 44... Rxc7 {[%clk
0:02:17.5]} 45. Rb6 {[%clk 0:00:17.9]} 45... Ra2 {[%clk 0:02:14.2]} 46. Bb3
{[%clk 0:00:16.6]} 46... Ra8 {[%clk 0:02:09.7]} 47. Kf2 {[%clk 0:00:14.9]} 47...
Rca7 {[%clk 0:02:05.6]} 48. Ke2 {[%clk 0:00:11.4]} 48... Ra3 {[%clk 0:02:04.6]}
49. Kd2 {[%clk 0:00:08.7]} 49... Ra1 {[%clk 0:02:03.2]} 50. Bd1 {[%clk
0:00:00.6]} 50... R8a2+ {[%clk 0:02:00.9]} 0-1

[Event "Live Chess"]
[Site "Chess.com"]
[Date "2023.05.20"]
[Round "-"]
[White "CameronM1234"]
[Black "WilliamofOrange16th"]
[Result "0-1"]
[WhiteElo "1095"]
[BlackElo "1846"]
[TimeControl "300"]
[EndTime "15:46:39 PDT"]
[Termination "WilliamofOrange16th won by checkmate"]

1. e4 {[%clk 0:04:59.6]} 1... d6 {[%clk 0:04:59]} 2. Nf3 {[%clk 0:04:57.9]} 2...
Nf6 {[%clk 0:04:58.6]} 3. d3 {[%clk 0:04:56.1]} 3... e5 {[%clk 0:04:57.7]} 4. g3
{[%clk 0:04:55.2]} 4... c6 {[%clk 0:04:56.2]} 5. Bg2 {[%clk 0:04:54.2]} 5... Be7
{[%clk 0:04:55.6]} 6. c3 {[%clk 0:04:48.8]} 6... O-O {[%clk 0:04:54.1]} 7. O-O
{[%clk 0:04:47.8]} 7... Nbd7 {[%clk 0:04:53.7]} 8. h3 {[%clk 0:04:46.9]} 8... d5
{[%clk 0:04:52.7]} 9. exd5 {[%clk 0:04:41.2]} 9... cxd5 {[%clk 0:04:52.6]} 10.
Nbd2 {[%clk 0:04:37]} 10... Qc7 {[%clk 0:04:51.2]} 11. Re1 {[%clk 0:04:32.9]}
11... Re8 {[%clk 0:04:49.1]} 12. c4 {[%clk 0:04:19.8]} 12... Rb8 {[%clk
0:04:23.5]} 13. cxd5 {[%clk 0:04:13.8]} 13... Nxd5 {[%clk 0:04:21.2]} 14. Nc4
{[%clk 0:04:06]} 14... Bf6 {[%clk 0:04:10.5]} 15. Nfxe5 {[%clk 0:03:33.5]} 15...
Nxe5 {[%clk 0:04:05.6]} 16. Bxd5 {[%clk 0:03:21.1]} 16... Bxh3 {[%clk
0:03:57.6]} 17. Bf4 {[%clk 0:03:12.7]} 17... Qc5 {[%clk 0:03:43.8]} 18. Nxe5
{[%clk 0:03:00.6]} 18... Qxd5 {[%clk 0:03:35]} 19. Nf3 {[%clk 0:02:51.7]} 19...
Rxe1+ {[%clk 0:03:24]} 20. Qxe1 {[%clk 0:02:50.5]} 20... Qxf3 {[%clk 0:03:23]}
21. Qe4 {[%clk 0:02:16.7]} 21... Qxe4 {[%clk 0:03:17.6]} 22. dxe4 {[%clk
0:02:15.2]} 22... Re8 {[%clk 0:03:13.3]} 23. Rc1 {[%clk 0:02:00.9]} 23... Rc8
{[%clk 0:03:02.8]} 24. Re1 {[%clk 0:01:56.9]} 24... Be6 {[%clk 0:02:57.6]} 25.
e5 {[%clk 0:01:54.1]} 25... Be7 {[%clk 0:02:56.8]} 26. b3 {[%clk 0:01:41.6]}
26... h6 {[%clk 0:02:49.9]} 27. Be3 {[%clk 0:01:39.6]} 27... b6 {[%clk
0:02:47.7]} 28. f4 {[%clk 0:01:34.6]} 28... Bg4 {[%clk 0:02:39.7]} 29. Rf1
{[%clk 0:01:23.8]} 29... Rc2 {[%clk 0:02:38.4]} 30. Rf2 {[%clk 0:01:20.5]} 30...
Rxf2 {[%clk 0:02:23.9]} 31. Kxf2 {[%clk 0:01:20.4]} 31... Bc5 {[%clk 0:02:18.8]}
32. Bxc5 {[%clk 0:01:16.8]} 32... bxc5 {[%clk 0:02:18.7]} 33. Ke3 {[%clk
0:01:16.1]} 33... Bf5 {[%clk 0:02:14.1]} 34. a3 {[%clk 0:01:08.2]} 34... Kf8
{[%clk 0:02:13]} 35. b4 {[%clk 0:01:05.8]} 35... cxb4 {[%clk 0:02:11.4]} 36.
axb4 {[%clk 0:01:04.8]} 36... Ke7 {[%clk 0:02:11]} 37. Kd4 {[%clk 0:01:04.1]}
37... Kd7 {[%clk 0:02:09.9]} 38. Kc5 {[%clk 0:01:03.3]} 38... Kc7 {[%clk
0:02:08.9]} 39. Kb5 {[%clk 0:01:02.4]} 39... Bd3+ {[%clk 0:02:06.2]} 40. Ka5
{[%clk 0:00:56.7]} 40... a6 {[%clk 0:02:00.4]} 41. Ka4 {[%clk 0:00:53.9]} 41...
Kc6 {[%clk 0:01:56.5]} 42. Kb3 {[%clk 0:00:51.3]} 42... Kd5 {[%clk 0:01:52.3]}
43. Kc3 {[%clk 0:00:50.5]} 43... Bb5 {[%clk 0:01:51.3]} 44. Kd2 {[%clk
0:00:47.9]} 44... Ke4 {[%clk 0:01:49.6]} 45. Kc3 {[%clk 0:00:46.7]} 45... h5
{[%clk 0:01:47.5]} 46. Kd2 {[%clk 0:00:43]} 46... g5 {[%clk 0:01:46.6]} 47. Kc3
{[%clk 0:00:42.9]} 47... gxf4 {[%clk 0:01:45.2]} 48. gxf4 {[%clk 0:00:42.8]}
48... Kxf4 {[%clk 0:01:44.5]} 49. e6 {[%clk 0:00:41.7]} 49... fxe6 {[%clk
0:01:43.4]} 50. Kd4 {[%clk 0:00:41.3]} 50... e5+ {[%clk 0:01:42]} 51. Kc5 {[%clk
0:00:41.2]} 51... e4 {[%clk 0:01:40.5]} 52. Kd5 {[%clk 0:00:38.9]} 52... e3
{[%clk 0:01:39.8]} 53. Ke6 {[%clk 0:00:38.8]} 53... e2 {[%clk 0:01:38.7]} 54.
Kf6 {[%clk 0:00:38.5]} 54... e1=R {[%clk 0:01:35]} 55. Kg6 {[%clk 0:00:38.4]}
55... h4 {[%clk 0:01:34]} 56. Kh5 {[%clk 0:00:38.3]} 56... h3 {[%clk 0:01:33.4]}
57. Kh4 {[%clk 0:00:37.2]} 57... h2 {[%clk 0:01:32.7]} 58. Kh5 {[%clk
0:00:34.5]} 58... h1=Q+ {[%clk 0:01:30.6]} 59. Kg6 {[%clk 0:00:34.4]} 59... Bd3+
{[%clk 0:01:23.9]} 60. Kf6 {[%clk 0:00:33.4]} 60... Qh6+ {[%clk 0:01:20.4]} 61.
Kf7 {[%clk 0:00:32.3]} 61... Qg6+ {[%clk 0:01:16.2]} 62. Kf8 {[%clk 0:00:31.1]}
62... Re8# {[%clk 0:01:15.7]} 0-1

[Event "Live Chess"]
[Site "Chess.com"]
[Date "2023.05.20"]
[Round "-"]
[White "jk0110"]
[Black "AbilifyXL"]
[Result "0-1"]
[WhiteElo "1116"]
[BlackElo "1968"]
[TimeControl "300"]
[EndTime "15:46:43 PDT"]
[Termination "AbilifyXL won on time"]

1. e4 {[%clk 0:04:57.5]} 1... d5 {[%clk 0:04:59.9]} 2. d4 {[%clk 0:04:55.6]}
2... dxe4 {[%clk 0:04:59]} 3. Nc3 {[%clk 0:04:55.1]} 3... Nf6 {[%clk 0:04:58]}
4. f3 {[%clk 0:04:53.5]} 4... exf3 {[%clk 0:04:56]} 5. Nxf3 {[%clk 0:04:53.4]}
5... c6 {[%clk 0:04:53.1]} 6. Bc4 {[%clk 0:04:51.1]} 6... Bf5 {[%clk 0:04:49.5]}
7. O-O {[%clk 0:04:44.2]} 7... e6 {[%clk 0:04:48.7]} 8. Bg5 {[%clk 0:04:35.8]}
8... Nbd7 {[%clk 0:04:43.7]} 9. Ne5 {[%clk 0:03:57.8]} 9... Be7 {[%clk
0:04:17.3]} 10. Bxf6 {[%clk 0:03:36.1]} 10... Nxf6 {[%clk 0:03:50]} 11. d5
{[%clk 0:03:10.9]} 11... O-O {[%clk 0:03:23.8]} 12. Qf3 {[%clk 0:02:51.9]} 12...
cxd5 {[%clk 0:03:18.4]} 13. Nxd5 {[%clk 0:02:44.4]} 13... Nxd5 {[%clk
0:03:14.1]} 14. Bxd5 {[%clk 0:02:40]} 14... exd5 {[%clk 0:02:58.5]} 15. Qxf5
{[%clk 0:02:30.4]} 15... Bf6 {[%clk 0:02:49.7]} 16. Nd7 {[%clk 0:01:57.8]} 16...
Bxb2 {[%clk 0:02:33.5]} 17. Rab1 {[%clk 0:01:37.8]} 17... Bd4+ {[%clk
0:02:27.8]} 18. Kh1 {[%clk 0:01:34.7]} 18... Bb6 {[%clk 0:01:42.1]} 19. Qxd5
{[%clk 0:01:15.5]} 19... Rc8 {[%clk 0:01:29.5]} 20. Qxb7 {[%clk 0:00:57.3]}
20... Rc7 {[%clk 0:01:26.8]} 21. Qxc7 {[%clk 0:00:47.3]} 21... Bxc7 {[%clk
0:01:22.3]} 22. Nxf8 {[%clk 0:00:43.8]} 22... Kxf8 {[%clk 0:01:15.4]} 23. Rbe1
{[%clk 0:00:39.5]} 23... f6 {[%clk 0:01:10.9]} 24. Rd1 {[%clk 0:00:34.2]} 24...
Qb8 {[%clk 0:01:09.6]} 25. Rf3 {[%clk 0:00:28.8]} 25... Bxh2 {[%clk 0:01:04.5]}
26. Rfd3 {[%clk 0:00:22.6]} 26... Kf7 {[%clk 0:01:01.9]} 27. Rd7+ {[%clk
0:00:13.6]} 27... Kg6 {[%clk 0:00:59.5]} 28. R7d3 {[%clk 0:00:05.1]} 28... Qf4
{[%clk 0:00:55.9]} 29. Rf3 {[%clk 0:00:01.6]} 29... Qh4 {[%clk 0:00:51.9]} 0-1

[Event "Live Chess"]
[Site "Chess.com"]
[Date "2023.05.20"]
[Round "-"]
[White "Singapourfeuj"]
[Black "Conradical12"]
[Result "1-0"]
[WhiteElo "2203"]
[BlackElo "1616"]
[TimeControl "300"]
[EndTime "15:46:48 PDT"]
[Termination "Singapourfeuj won by resignation"]

1. d4 {[%clk 0:04:58.6]} 1... d5 {[%clk 0:04:56.2]} 2. Nc3 {[%clk 0:04:57.4]}
2... Nf6 {[%clk 0:04:53.6]} 3. e4 {[%clk 0:04:55.7]} 3... dxe4 {[%clk
0:04:52.1]} 4. f3 {[%clk 0:04:54.8]} 4... exf3 {[%clk 0:04:51.1]} 5. Nxf3 {[%clk
0:04:51.4]} 5... Nc6 {[%clk 0:04:51]} 6. Bc4 {[%clk 0:04:50.2]} 6... Bf5 {[%clk
0:04:49.5]} 7. Bg5 {[%clk 0:04:47.5]} 7... Nb4 {[%clk 0:04:47.8]} 8. Rc1 {[%clk
0:04:45.6]} 8... c6 {[%clk 0:04:45.1]} 9. O-O {[%clk 0:04:44.5]} 9... h6 {[%clk
0:04:38.9]} 10. Bxf6 {[%clk 0:04:40.2]} 10... gxf6 {[%clk 0:04:37.8]} 11. Qe2
{[%clk 0:04:32.5]} 11... Rg8 {[%clk 0:04:36.1]} 12. Kh1 {[%clk 0:04:30.7]} 12...
Qc7 {[%clk 0:04:33.1]} 13. Nh4 {[%clk 0:04:29]} 13... Bd7 {[%clk 0:04:26.1]} 14.
a3 {[%clk 0:04:25]} 14... Nd5 {[%clk 0:04:20.6]} 15. Bxd5 {[%clk 0:04:23.5]}
15... cxd5 {[%clk 0:04:19.8]} 16. Nxd5 {[%clk 0:04:22.7]} 16... Qd6 {[%clk
0:04:17.8]} 17. c4 {[%clk 0:04:21]} 17... O-O-O {[%clk 0:04:15.7]} 18. Nf3
{[%clk 0:04:14.1]} 18... Bc6 {[%clk 0:04:11.2]} 19. Ne3 {[%clk 0:04:11.5]} 19...
e5 {[%clk 0:04:05]} 20. c5 {[%clk 0:04:09.1]} 20... Qd7 {[%clk 0:04:00.8]} 21.
d5 {[%clk 0:04:08]} 21... Bxd5 {[%clk 0:03:59]} 22. Nxd5 {[%clk 0:04:06.2]}
22... Qxd5 {[%clk 0:03:57.7]} 23. c6 {[%clk 0:04:05.4]} 23... b6 {[%clk
0:03:56.2]} 24. Qa6+ {[%clk 0:04:03.4]} 24... Kc7 {[%clk 0:03:52]} 25. Qb7+
{[%clk 0:04:02.3]} 25... Kd6 {[%clk 0:03:51.2]} 26. Rfd1 {[%clk 0:04:01.4]}
26... Qxd1+ {[%clk 0:03:48.6]} 27. Rxd1+ {[%clk 0:04:00.5]} 27... Ke6 {[%clk
0:03:48]} 28. Rxd8 {[%clk 0:03:58.9]} 1-0